Cogmind - Beta 14 @@@ ROGUE MODE // 2024.12.29 @ 17:18:32 Player: Devolved Result: Destroyed by Y-45 Defender with Heavy Assault Rifle Performance ------------- Evolutions (1) 500 Regions Visited (2) 400 Robots Destroyed (22) 110 Value Destroyed (331) 331 Prototype IDs (2) 40 Alien Tech Used (0) 0 Bonus (0) 0 TOTAL SCORE: 1381 Bonus ------- None Cogmind --------- Core Integrity 0/400 Matter 285/300 Energy 265/265 System Corruption 5% Temperature Cool (0) Movement Core (200) Ox3 Location -9/Materials Parts ------- > --- POWER (1) -------- Reinforced Ion Engine > --- PROPULSION (2) --- (None) > --- UTILITY (4) ------ (None) > --- WEAPON (2) ------- (None) > --- INVENTORY (5) ---- Ion Engine Peak State ------------ > --- POWER ------------ Ion Engine > --- PROPULSION ------- Flight Unit Flight Unit > --- UTILITY ---------- Small Storage Unit Terrain Scanner ECM Suite > --- WEAPON ----------- Small Laser Improved Medium Laser > --- INVENTORY -------- (None) [Rating: 10] Favorites ----------- Power Ion Engine Engine Ion Engine Propulsion Aluminum Leg Leg Aluminum Leg Hover Unit Improved Hover Unit Flight Unit Flight Unit Utility Improved Terrain Scanner Device Improved Terrain Scanner Storage Small Storage Unit Weapon Assault Rifle Energy Gun Improved Medium Laser Ballistic Gun Assault Rifle Special Melee Weapon Datajack Build | -11 -10 -9 ------- Run | Yrd Mat Mat Slots Evolved 2 | . . 2 Power . | . . . Propulsion . | . . . Utility 2 | . . 2 Weapon . | . . . Parts Attached 20 | 7 1 12 Power 3 | 1 . 2 Engine 3 | 1 . 2 Core . | . . . Reactor . | . . . Propulsion 5 | 2 . 3 Treads . | . . . Leg 2 | 2 . . Wheel . | . . . Hover 1 | . . 1 Flight 2 | . . 2 Utility 5 | 2 . 3 Device 4 | 2 . 2 Storage 1 | . . 1 Processor . | . . . Hackware . | . . . Protection . | . . . Artifact . | . . . Weapon 7 | 2 1 4 Energy Gun 3 | . . 3 Energy Cannon . | . . . Ballistic Gun 3 | 2 1 . Ballistic Cannon . | . . . Launcher . | . . . Special Weapon . | . . . Impact Weapon . | . . . Slashing Weapon . | . . . Piercing Weapon . | . . . Special Melee Weapon 1 | . . 1 Unidentified Prototypes . | . . . Parts Lost 15 | . 4 11 Power 1 | . 1 . Propulsion 5 | . . 5 Utility 3 | . 2 1 Weapon 6 | . 1 5 Highest Loss Streak 6 | . 4 6 To Critical Strikes . | . . . Average Slot Usage (%) 85 | . 98 51 Engine 11 | . 13 7 Leg 21 | . 28 3 Flight 2 | . . 9 Device 22 | . 27 12 Storage 1 | . . 4 Energy Gun 3 | . . 12 Ballistic Gun 20 | . 27 1 Peak Build Rating 10 | 9 9 10 Average Rating 7 | 6 8 5 On Entrance 4 | . 9 3 Naked Turns . | . . . Heaviest Build 16 | 10 11 16 Greatest Support 20 | 20 20 20 Greatest Overweight (x) 3 | . . 3 Average Overweight (x) . | . . 1 Largest Inventory Capacity 8 | 5 5 8 Average Capacity 5 | 5 5 6 Most Carried 5 | 4 5 4 Average Carried 3 | 2 4 . Final Capacity 5 | 5 5 5 Final Carried 5 | 3 5 1 Class Distribution -------------------- 100% | Mutant Dominant Class ---------------- Mutant | -10/Materials Mutant | -9/Materials Resources | -11 -10 -9 ----------- Run | Yrd Mat Mat Matter Collected 631 | 354 185 92 Remotely . | . . . Salvage Created 636 | 179 310 147 Parts 49 | 10 27 12 Haulers Intercepted 1 | . 1 . Recyclers Shooed . | . . . Parts Field Recycled . | . . . Retrieved Matter . | . . . Parts Self-Destructed . | . . . Prevented . | . . . Kills | -11 -10 -9 ------- Run | Yrd Mat Mat Combat Hostiles Destroyed 14 | . 11 3 Guns 14 | . 11 3 Classes Destroyed 7 | 3 4 . Worker 2 | 2 . . Builder 2 | . 1 1 Tunneler 2 | 2 . . Hauler 1 | . 1 . Recycler 1 | 1 . . Swarmer 8 | . 8 . Grunt 6 | . 3 3 Best Kill Streak 3 | 2 3 3 Combat Bots Only 3 | . 3 3 Max Kills in Single Turn 2 | 1 2 1 Gunslinging 1 | . 1 . Exploded . | . . . Melee . | . . . Uniques/NPCs Destroyed . | . . . Combat | -11 -10 -9 -------- Run | Yrd Mat Mat Hostile Shots Fired 154 | . 62 92 Missed 44 | . 14 30 Damage Taken 1459 | . 565 894 Core 495 | . 94 401 Absorbed by Shields . | . . . Core Remaining (%) 81 | 100 62 . Volleys Fired 78 | 21 36 21 Largest 2 | 2 2 2 Hottest 96 | 40 40 96 Shots Fired 140 | 42 72 26 Gun 140 | 42 72 26 Cannon . | . . . Launcher . | . . . Special . | . . . Kinetic 115 | 42 72 1 Thermal 17 | . . 17 Explosive . | . . . Electromagnetic 8 | . . 8 Robot Hit Streak 6 | 5 5 6 Robot Miss Streak 4 | 4 3 4 Penetration Max . | . . . Secondary Targets 1 | . 1 . Max Gunslinging Chain 1 | . 1 . Shots Hit Robots 82 | 27 39 16 Core Hits 32 | 9 17 6 Critical Kills 1 | . 1 . Critical Parts Destroyed . | . . . Critical Strikes 1 | . 1 . Destroy 1 | . 1 . Melee Attacks . | . . . Impact . | . . . Slashing . | . . . Piercing . | . . . Sneak Attacks . | . . . Combat Hostiles . | . . . Follow-up Attacks . | . . . Damage Inflicted 919 | 279 432 208 Guns 919 | 279 432 208 Cannons . | . . . Explosions . | . . . Melee . | . . . Ramming . | . . . Kinetic 711 | 279 432 . Thermal 130 | . . 130 Explosive . | . . . Electromagnetic 78 | . . 78 Impact . | . . . Slashing . | . . . Piercing . | . . . Highest Corruption 5 | . 4 5 Average Corruption 3 | . 3 3 Corruption Purged . | . . . Corruption Blocked . | . . . Effects 18 | . 16 2 Message Errors 2 | . 2 . Matter Fused 4 | . 3 1 Heat Flow Errors 3 | . 3 . Energy Discharges 3 | . 3 . Parts Fused 1 | . 1 . Data Loss (minor) 3 | . 2 1 Misfires 1 | . 1 . Weapon Failures 1 | . 1 . Overload Shots . | . . . Overflow Damage . | . . . Projectiles . | . . . Explosions . | . . . Melee . | . . . Knockbacks . | . . . Impact . | . . . Kinetic . | . . . Secondary . | . . . Self-Inflicted Damage . | . . . Shots . | . . . Rammed . | . . . Targets Rammed 1 | . 1 . Kicked 1 | . 1 . Crushed . | . . . Highest Temperature 163 | . 163 82 Average Temperature 39 | . 65 22 Received Heat Transfer 528 | . 174 354 Siege Activations . | . . . Robots Corrupted . | . . . Combat Hostiles . | . . . Parts Fried . | . . . Impact Corruptions . | . . . Robots Melted . | . . . Combat Hostiles . | . . . Parts Melted . | . . . Heat Transferred 285 | . . 285 Parts Sabotaged . | . . . Parts Stolen . | . . . Parts Stripped . | . . . Power Chain Reactions . | . . . Alert | -11 -10 -9 ------- Run | Yrd Mat Mat Peak Influence 233 | 25 233 65 Initial 16 | . 16 . Average 40 | 12 56 18 Maximum Alert Level 1 | . 1 . Low Security (%) 99 | 100 98 100 Level 1 . | . 1 . Level 2 . | . . . Level 3 . | . . . Level 4 . | . . . Level 5 . | . . . High Security . | . . . Max Security . | . . . Squads Dispatched 2 | . 2 . Investigation 1 | . 1 . Extermination . | . . . Reinforcement 1 | . 1 . Assault . | . . . Garrison . | . . . Intercept . | . . . Searches Triggered . | . . . Construction Impeded . | . . . Haulers Reinforced . | . . . Active Scanning Responses . | . . . Cargo Convoy Interrupts . | . . . Stealth | -11 -10 -9 --------- Run | Yrd Mat Mat Distress Signals 2 | . 1 1 Communications Jammed . | . . . Distress Signals . | . . . Times Spotted 37 | . 19 18 Peak Tracking Total 7 | . 4 7 Tactical Retreats 4 | . 2 2 Traps | -11 -10 -9 ------- Run | Yrd Mat Mat Traps Triggered 4 | . 4 . Indirectly . | . . . Trap Hack Attempts . | . . . Triggered . | . . . Disarmed . | . . . Reprogrammed . | . . . Reused . | . . . Traps Extracted . | . . . Installed . | . . . Triggered . | . . . Machines | -11 -10 -9 ---------- Run | Yrd Mat Mat Machines Disabled . | . . . Max in Single Turn . | . . . Machines Repaired . | . . . Machines Dismantled . | . . . Machines Sabotaged . | . . . Overloaded Fab Kills . | . . . Hacking | -11 -10 -9 --------- Run | Yrd Mat Mat Machines Accessed 6 | . 5 1 Terminals 6 | . 5 1 Fabricators . | . . . Repair Stations . | . . . Recycling Units . | . . . Scanalyzers . | . . . Garrison Access . | . . . Total Hacks 10 | . 7 3 Successful 7 | . 4 3 Failed 3 | . 3 . Catastrophic 1 | . 1 . Database Lockouts . | . . . Manual . | . . . Terminals 10 | . 7 3 Fabricators . | . . . Repair Stations . | . . . Recycling Units . | . . . Scanalyzers . | . . . Garrison Access . | . . . Terminal Hacks 7 | . 4 3 Prototype ID Bank 1 | . 1 . Emergency Access Points 1 | . . 1 Alert Level 1 | . . 1 Unreport Threat 2 | . 1 1 Locate Traps 1 | . 1 . Recall Investigation 1 | . 1 . Fabricator Hacks . | . . . Repair Station Hacks . | . . . Recycling Unit Hacks . | . . . Scanalyzer . | . . . Garrison Access Hacks . | . . . Unauthorized Hacks . | . . . Terminals . | . . . Fabricators . | . . . Repair Stations . | . . . Recycling Units . | . . . Scanalyzers . | . . . Garrison Access . | . . . Data Cores Recovered . | . . . Used . | . . . Hacking Detections 5 | . 5 . Full Trace Events . | . . . Feedback Events . | . . . Feedback Blocked . | . . . Robot Schematics Acquired . | . . . Robots Built . | . . . Authchips . | . . . Time . | . . . Total Robot Build Rating . | . . . Part Schematics Acquired . | . . . Parts Built . | . . . Authchips . | . . . Time . | . . . Total Part Build Rating . | . . . Parts Repaired . | . . . Time . | . . . Parts Recycled . | . . . Recycled Matter . | . . . Retrieved Matter . | . . . Retrieved Components . | . . . Parts Scanalyzed . | . . . Part Schematics Acquired . | . . . Parts Damaged . | . . . Bothacking | -11 -10 -9 ------------ Run | Yrd Mat Mat Used RIF Installer . | . . . Robots Hacked . | . . . Non-combat . | . . . Combat . | . . . Robot Hacks Applied . | . . . Relay Couplers Released . | . . . Fabnet Peak Effective % . | . . . Robots Rewired . | . . . Allies Hacked . | . . . Hacks Repelled . | . . . Allies | -11 -10 -9 -------- Run | Yrd Mat Mat Total Allies . | . . . Largest Group . | . . . Highest-Rated Group . | . . . Highest-Rated Ally . | . . . Total Orders . | . . . Ally Attacks . | . . . Total Damage . | . . . Kills . | . . . Allies Corrupted . | . . . Allies Melted . | . . . Intel | -11 -10 -9 ------- Run | Yrd Mat Mat Robot Analysis Total . | . . . Derelict Logs Recovered . | . . . Drone Launches . | . . . Drone Recoveries . | . . . Exploration | -11 -10 -9 ------------- Run | Yrd Mat Mat Turns Passed 1413 | 211 866 336 Spaces Moved 869 | 119 587 163 Core 54 | 10 . 44 Treads . | . . . Legs 717 | 109 587 21 Wheels . | . . . Hover 6 | . . 6 Flight 92 | . . 92 Fastest Speed 50 | 50 120 100 Average Speed 123 | 114 120 142 Slowest Speed 280 | 120 120 280 Overloaded Moves . | . . . Propulsion Burnouts . | . . . Robots Hopped . | . . . Cave-ins Triggered . | . . . Exploration Rate (%) 37 | 7 84 22 Regions Visited 2 Branch Regions . Pre-discovered Areas . | . . . Known Exits Taken . | . . . Unknown Exits Taken 2 | 1 1 . Scrap Searched . | . . . Spaces Dug . | . . . Terrain Destroyed . | . . . Melee . | . . . Projectile . | . . . AOE . | . . . Terrain Rammed . | . . . Walls Destroyed . | . . . Machines Disabled . | . . . Actions | -11 -10 -9 --------- Run | Yrd Mat Mat Total 1079 | 156 682 241 Wait 84 | . 48 36 Move 867 | 118 586 163 Hop . | . . . Pick Up 23 | 10 6 7 Fast Attach . | . . . Attach 18 | 7 . 11 Detach . | . . . Swap 2 | . 1 1 Drop 6 | . 4 2 Fire 78 | 21 36 21 Melee . | . . . Ram . | . . . Kick 1 | . 1 . Crush . | . . . Escape Stasis . | . . . Rewire . | . . . Trap . | . . . Miscellaneous . | . . . Route ------- -11/Scrapyard -10/Materials (discovered 4 exits: *Mat x2 / [*Min x2]) -9/Materials (discovered 1 exit: [*Min]) History --------- Turn | Location | Event 8 | -11/Scrapyard | Discovered new exit (range 16) 212 | -11/Scrapyard | Entered Materials 212 | -10/Materials | Discovered new exit (range 14) 308 | -10/Materials | Build established: Mutant 320 | -10/Materials | Discovered new exit (range 8) 860 | -10/Materials | Discovered new exit (range 14) 901 | -10/Materials | Discovered new exit (range 13) 1078 | -10/Materials | Entered another Materials area 1078 | -9/Materials | Evolved 2 slots: Utility x2 1095 | -9/Materials | Lost 4 parts (1p2u1w) 1199 | -9/Materials | Lost 6 parts (3n3w) 1341 | -9/Materials | Discovered new exit (range 12) 1364 | -9/Materials | Core integrity fell below 50% 1371 | -9/Materials | Lost 4 parts (2n1u1w) 1407 | -9/Materials | Core integrity fell below 20% 1414 | -9/Materials | Destroyed by Y-45 Defender with Heavy Assault Rifle Last Messages --------------- K-01 Serf collects debris. C-30 ARC bursts open, deploying its payload. B-36 Bruiser unfolds itself. G-34 Mercenary unfolds itself. K-01 Serf collects debris. Flight Unit destroyed. System corrupted by crushing effect (+1). ECM Suite destroyed. System corrupted by crushing effect (+1). Imp. Medium Laser destroyed. System corrupted by crushing effect (+1). Flight Unit destroyed. EXIT=FOUND Acquired Rnf. Ion Engine. W-16 Scout sends out distress signal. Sml. Laser destroyed. System corrupted by crushing effect (+2). Knocked back. System corrupted: Component data lost. System corrupted: Matter fused (-10). Map ----- +----------------------------------------------------+ | ?????????????????????????????????????????????????? | | ?????????????????????????????????????????????????? | | ?????????????????????????????????????????????????? | | ?????????????????????????????????????????????????? | | ?????????????????????????????????????????????????? | | ?????????????????????????????????????????????????? | | ?????????????????????????????????????????????????? | | ???????????????????????? ????????????????????????? | | ???????????????????????? ????????????????????????? | | ???????????????????????? ?????????????##????????? | | ????????????????????????# ???######??? ####?????? | | ????????????????????????# ??##!!!!##?? ??????? | | ????????????????????????# ??#! !#? ???????? | | ????????????????????????# ??# #? #????????? | | ????????????????????????# ### ## #?????????? | | ????????????????????????# u ######????? | | ?????????????# ?######### ?????? | | ?????????????# T #????????? | | ?????????????# #????????? | | ?????????????# #?????????????? | | ?????????????+ k #?????????????? | | ?????????????# """" g"""" #?????????????? | | ?????????????# """"g """" #?????????????? | | ?????????????+ """" g"""" #?????????????? | | ????????????????# b #?????????????? | | ????????????????# @ #?????????????? | | ????????????????# #?????????????? | | ????????????????# #?????????????? | | ????????????? #######?????????????? | | ????????????############# Y ##???????????????????? | | ????????????????????????#k #????????????????????? | | ????????????????????????# #????????????????????? | | ????????????????????????# #????????????????????? | | ?????????????????????#### ##???????????????????? | | ?????????????????????#" #???????????????????? | | ?????????????????????#"" #???????????????????? | | ?????????????????????#!! #???????????????????? | | ?????????????????????#"" < #########???????????? | | ???????????????#?????#!! ## = #???????????? | | ???????????????? ???#"" ## #???????????? | | ?????????????????# ??#" ## """#???????????? | | ??????????????????# ##### ### """#???????????? | | ??????????????????# #?# """#???????????? | | ??????????????????# #?# #???????????? | | ??????????????????# #?# ] #???????????? | | ??????????????????# ### #???????????? | | ??????????????????#==! ###/###+#####+##????? | | ??????????????????#=!! #????? | | ??????????????????#=!! % #????? | | ??????????????????# #????? | +----------------------------------------------------+ Best States ------------- Heat Dissipation 28 Energy Generation 12 Energy Capacity 265 Matter Stores 300 Matter Capacity 300 Sight Range 16 Terrain Scan Range 16 Terrain Scan Density 10 ECM Strength 1 Evasion (%) 55 Item Schematics ----------------- None Robot Schematics ------------------ None Fabricated ------------ Nothing Alien Tech Used ----------------- None Achievements -------------- None Challenges ------------ None Game ------ Seed GrenadeDiametricChainsword Manual? 0 Play Time 00:22:26 Cumulative 4.2 hours Start 2024.12.29 @ 16:56:18 End 2024.12.29 @ 17:18:32 Sessions 1 Manual Loads 0 Difficulty Rogue Special Mode None Game No. 5 Rogue 5 Adventurer 0 Explorer 0 Win Type - Total 0 Types 0/0/0/0/0/0/0/0/0 Lore% 4 Gallery% 6 Achievement% 7 Wizard Run 0 Options --------- Layout 1 ASCII 0 Keyboard 0 Movement Numpad Keybinds 0 Fullscreen 1 Font 32/SmallcapsGlow Map View 77x35 Zoom Use 0% Tactical HUD 0 Map Filters NONE Filters NONE Steam 1 RUN: 8b6aeaa9-7f5f-4934-ab2f-170ff74739f1